{"text_format":"1","workbook":"xlsx","n_sheets":3,"sheets":["Instruccions","Reformulació Pressupost Bc","Resum Pressupost"],"not_rendered":{"charts":0,"images":5,"macros":1,"external_links":0,"defined_names":8,"comments":2,"pivot_tables":0},"unopened":[],"bounds":{"document_bytes":16777216,"sheet_cells":100000,"rows_first":2000,"rows_last":500,"rows_between":2000,"halvings":0,"cell_chars":16384,"cell_head_chars":4096},"cells_cut":0,"cells_raw":0,"read":"whole","date_system":"1900"}

{"sheet":"Instruccions","index":0,"n_rows":24,"n_cols":10,"rows_kept":24,"cut":false,"hidden":false,"merged":[[22,1,22,16],[23,1,23,16],[1,9,1,11],[2,2,2,17],[4,2,4,17]]}
[]
[null,null,null,null,null,null,null,null,null,"Doc_basic3_pressup_reformulat_Bc INSTRUCCIONS"]
[null,null,"SUBVENCIONS DE L’AJUNTAMENT DE BARCELONA PER L’ENFORTIMENT DE L’ECONOMIA SOCIAL I SOLIDÀRIA I PER LA INTERCOOPERACIÓ EN L’ESTRATÈGIA #ESSBCN2030 - ENFORTIM L’ESS 2023"]
[]
[null,null,"Aspectes rellevants relacionats amb la reformulació"]
[]
[]
[]
[]
[null,"1. Emplenar la pestanya  \"Reformulació Pressupost\" amb les dades econòmiques del projecte:"]
[null,"1.1  Emplenar els quadres DADES BÀSIQUES-PREVISIÓ DE DESPESES DEL PROJECTE SUBVENCIONABLE INICIAL, amb les dades economiques de la proposta inicial amb subvenció atorgada."]
[null,"1.2  Emplenar els quadres DADES BÀSIQUES-PREVISIÓ DE DESPESES DEL PROJECTE REFORMULAT, amb les dades economiques de la proposta de reformulació."]
[null,"2. Revisar i emplenar la pestanya  \"Resum Pressupost\" amb les dades econòmiques del projecte:"]
[null,"3. Imprimir els fulls de les 2 pestanyes (Reformulació pressupost i Resum Pressupost). En format pdf."]
[]
[]
[]
[null,"Clica la icona per generar un document PDF del llibre"]
[]
[]
[]
[]
[null,"4. Si la sol·licitud es va presentar per via telemàtica, cal que registreu la documentació, telemàticament, com a tràmit específic, dins la convocatòria específica com annexió de documents addicionals i feu servir el número de tràmit que el sistema de registre us va donar en el moment de la presentació de la sol·licitud de la subvenció."]
[null,"5. En el cas que registreu la documentació telemàticament, com a instància genèrica, mitjançant certificat digital, us recomanem que aviseu a l'adreça de correu electrònic subvencions_ec_solidaria@bcn.cat, per tal de poder fer-ne un seguiment, així com també en els casos que presenteu la documentació a través d'una Oficina d'Atenció Ciutadana de l'Ajuntament, si no heu pogut obtenir el certificat digital (els requisits per obtenir-lo els trobareu a l'Oficina Virtual de Tràmits de la Seu Electrònica: https://seuelectronica.ajuntament.barcelona.cat/oficinavirtual/)."]

{"sheet":"Reformulació Pressupost Bc","index":1,"n_rows":143,"n_cols":10,"rows_kept":143,"cut":false,"hidden":false,"merged":[[141,0,141,3],[142,0,142,3],[134,0,134,3],[135,0,135,3],[136,0,136,3],[137,0,137,3],[138,0,138,3],[131,0,131,3],[132,0,132,3],[133,0,133,3],[139,0,139,3],[140,0,140,3],[126,0,126,3],[127,0,127,3],[128,0,128,3],[129,0,129,3],[130,0,130,3],[117,2,119,3],[122,0,122,3],[123,0,123,3],[124,0,124,3],[125,0,125,3],[3,0,4,8],[20,0,20,3],[1,1,1,8],[18,0,18,3],[10,6,10,7],[18,6,18,8],[6,2,6,5]]}
[]
[null,"Reformulació pressupost Modalitat Bc"]
[]
["Programa de subvencions de l'Ajuntament de Barcelona per a la reactivació i l'enfortiment de l'Economia Social i Solidària i el desenvolupament de projectes d'intercooperació que desenvolupen l'Estratègia #ESSBCN2030"]
[]
[]
[]
["DADES BÀSIQUES"]
["Nom de la persona física/ jurídica",null,{"$f":"+IF(H9>Dadesbasiques[[#This Row],[Columna1]],\"ALERTA: La quantia de la subvenció atorgada no pot superar el 80% de la despesa total del projecte a subvencionar\", \" \")","v":" "},null,null,"  "]
["NIF de la persona física/ jurídica",null,{"$f":"+IF(H10>Dadesbasiques[[#This Row],[Columna1]],\"ALERTA: La quantia de la subvenció atorgada no pot superar el 80% de la despesa total del projecte a subvencionar\", \" \")","v":" "}]
["Nom del projecte subvencionable",null,{"$f":"+IF(H11>Dadesbasiques[[#This Row],[Columna1]],\"ALERTA: La quantia de la subvenció atorgada no pot superar el 80% de la despesa total del projecte a subvencionar\", \" \")","v":" "},null,null,null,"DADES BÀSIQUES PROJECTE REFORMULAT"]
["Import total del projecte subvencionable",null,null,null,null,null,"Import total del projecte REFORMULAT"]
["Import imputable a la subvenció municipal",null,null,null,null,null,"Import imputable a la subvenció ATORGADA"]
["Import de l'aportació / Cofinançament de l'organització",{"$f":"+B12-B13","v":0},null,null,null,null,"Import de l'aportació / Cofinançament de l'organització",{"$f":"H12-H13","v":0}]
["% de l'import sol·licitat respecte el total del projecte subvencionable (*)",{"$f":"B13/B12","v":{"$error":"#DIV/0!"}},null,null,null,null,"% de l'import sol·licitat respecte el total del projecte subvencionat",{"$f":"H13/H12","v":{"$error":"#DIV/0!"}},{"$f":"+IF(H15>Dadesbasiques[[#This Row],[Columna1]],\"*Aquest percentatge ha de ser igual o menor al percentatge subvencionat inicialment.\",\" \")","v":{"$error":"#DIV/0!"}}]
["Data inici del projecte subvencionat (dd/mm/aaaa)",null,{"$f":"+IF(H16>Dadesbasiques[[#This Row],[Columna1]],\"ALERTA: La quantia de la subvenció atorgada no pot superar el 80% de la despesa total del projecte a subvencionar\", \" \")","v":" "}]
["Data fi del projecte subvencionat (dd/mm/aaaa)",null,{"$f":"+IF(H17>Dadesbasiques[[#This Row],[Columna1]],\"ALERTA: La quantia de la subvenció atorgada no pot superar el 80% de la despesa total del projecte a subvencionar\", \" \")","v":" "}]
[]
["PREVISIÓ DE DESPESES DEL PROJECTE SUBVENCIONABLE INICIAL",null,null,null,null,null,"PREVISIÓ DE DESPESES DEL PROJECTE REFORMULAT"]
[]
["PREVISIÓ DE DESPESES DEL PROJECTE SUBVENCIONABLE PER SUBMODALITAT Bc"]
["Partides","Import imputable a la subvenció municipal","Import de l'aportació / Cofinançament de l'organització","Import total del projecte",null,null,"Import imputable a la subvenció municipal","Import de l'aportació / Cofinançament de l'organització","Import total del projecte"]
["D1. Retribucions i seguretat social (règim general o règim d’autònoms) del personal propi vinculat/da al projecte (màxim 25% subvenció)",{"$f":"SUM(B24:B27)","v":0},{"$f":"SUM(C24:C27)","v":0},{"$f":"SUM(DespesesProjecte[[#This Row],[Import imputable a la subvenció municipal]],DespesesProjecte[[#This Row],[Import de l''aportació / Cofinançament de l''organització]])","v":0},null,null,{"$f":"SUM(G24:G27)","v":0},{"$f":"SUM(H24:H27)","v":0},{"$f":"+G23+H23","v":0}]
[null,null,null,{"$f":"SUM(DespesesProjecte[[#This Row],[Import imputable a la subvenció municipal]],DespesesProjecte[[#This Row],[Import de l''aportació / Cofinançament de l''organització]])","v":0},null,null,null,null,{"$f":"+G24+H24","v":0}]
[null,null,null,{"$f":"SUM(DespesesProjecte[[#This Row],[Import imputable a la subvenció municipal]],DespesesProjecte[[#This Row],[Import de l''aportació / Cofinançament de l''organització]])","v":0},null,null,null,null,0]
[null,null,null,{"$f":"SUM(DespesesProjecte[[#This Row],[Import imputable a la subvenció municipal]],DespesesProjecte[[#This Row],[Import de l''aportació / Cofinançament de l''organització]])","v":0},null,null,null,null,0]
[null,null,null,{"$f":"SUM(DespesesProjecte[[#This Row],[Import imputable a la subvenció municipal]],DespesesProjecte[[#This Row],[Import de l''aportació / Cofinançament de l''organització]])","v":0},null,null,null,null,0]
["TOTAL DE DESPESES DEL PERSONAL\nMàxim 25% de l'import imputable a la subvenció municipal si es tracta de personal propi assignat directament al projecte subvencionat",{"$f":"SUM(B23)","v":0},{"$f":"SUM(C23)","v":0},{"$f":"SUM(D23)","v":0},null,null,{"$f":"SUM(G23)","v":0},{"$f":"SUM(H23)","v":0},{"$f":"SUM(I23)","v":0},{"$f":"+IF(G28>H13*0.25,\"ALERTA: Màxim 25% de l'import imputable a la subvenció municipal\", \" \")","v":" "}]
["D2. Treballs realitzats per professionals i empreses externes directament vinculades al projecte",{"$f":"SUM(B30:B32)","v":0},{"$f":"SUM(C30:C32)","v":0},{"$f":"SUM(DespesesProjecte[[#This Row],[Import imputable a la subvenció municipal]],DespesesProjecte[[#This Row],[Import de l''aportació / Cofinançament de l''organització]])","v":0},null,null,{"$f":"SUM(G30:G32)","v":0},{"$f":"SUM(H30:H32)","v":0},{"$f":"+G29+H29","v":0}]
[null,null,null,{"$f":"SUM(DespesesProjecte[[#This Row],[Import imputable a la subvenció municipal]],DespesesProjecte[[#This Row],[Import de l''aportació / Cofinançament de l''organització]])","v":0},null,null,null,null,{"$f":"+G30+H30","v":0}]
[null,null,null,{"$f":"SUM(DespesesProjecte[[#This Row],[Import imputable a la subvenció municipal]],DespesesProjecte[[#This Row],[Import de l''aportació / Cofinançament de l''organització]])","v":0},null,null,null,null,0]
[null,null,null,{"$f":"SUM(DespesesProjecte[[#This Row],[Import imputable a la subvenció municipal]],DespesesProjecte[[#This Row],[Import de l''aportació / Cofinançament de l''organització]])","v":0},null,null,null,null,0]
["D3. Lloguer de béns mobles directament vinculats al projecte",{"$f":"SUM(B34:B36)","v":0},{"$f":"SUM(C34:C36)","v":0},{"$f":"SUM(DespesesProjecte[[#This Row],[Import imputable a la subvenció municipal]],DespesesProjecte[[#This Row],[Import de l''aportació / Cofinançament de l''organització]])","v":0},null,null,{"$f":"SUM(G34:G36)","v":0},{"$f":"SUM(H34:H36)","v":0},0]
[null,null,null,{"$f":"SUM(DespesesProjecte[[#This Row],[Import imputable a la subvenció municipal]],DespesesProjecte[[#This Row],[Import de l''aportació / Cofinançament de l''organització]])","v":0},null,null,null,null,0]
[null,null,null,{"$f":"SUM(DespesesProjecte[[#This Row],[Import imputable a la subvenció municipal]],DespesesProjecte[[#This Row],[Import de l''aportació / Cofinançament de l''organització]])","v":0},null,null,null,null,0]
[null,null,null,{"$f":"SUM(DespesesProjecte[[#This Row],[Import imputable a la subvenció municipal]],DespesesProjecte[[#This Row],[Import de l''aportació / Cofinançament de l''organització]])","v":0},null,null,null,null,0]
["D4. Adquisició de materials i béns consumibles íntegrament imputables al projecte ",{"$f":"SUM(B38:B40)","v":0},{"$f":"SUM(C38:C40)","v":0},{"$f":"SUM(DespesesProjecte[[#This Row],[Import imputable a la subvenció municipal]],DespesesProjecte[[#This Row],[Import de l''aportació / Cofinançament de l''organització]])","v":0},null,null,{"$f":"SUM(G38:G40)","v":0},{"$f":"SUM(H38:H40)","v":0},0]
[null,null,null,{"$f":"SUM(DespesesProjecte[[#This Row],[Import imputable a la subvenció municipal]],DespesesProjecte[[#This Row],[Import de l''aportació / Cofinançament de l''organització]])","v":0},null,null,null,null,0]
[null,null,null,{"$f":"SUM(DespesesProjecte[[#This Row],[Import imputable a la subvenció municipal]],DespesesProjecte[[#This Row],[Import de l''aportació / Cofinançament de l''organització]])","v":0},null,null,null,null,0]
[null,null,null,{"$f":"SUM(DespesesProjecte[[#This Row],[Import imputable a la subvenció municipal]],DespesesProjecte[[#This Row],[Import de l''aportació / Cofinançament de l''organització]])","v":0},null,null,null,null,0]
["D5. Transport – missatgeria imputables al projecte",{"$f":"SUM(B42:B44)","v":0},{"$f":"SUM(C42:C44)","v":0},{"$f":"DespesesProjecte[[#This Row],[Import imputable a la subvenció municipal]]+DespesesProjecte[[#This Row],[Import de l''aportació / Cofinançament de l''organització]]","v":0},null,null,{"$f":"SUM(G42:G44)","v":0},{"$f":"SUM(H42:H44)","v":0},0]
[null,null,null,{"$f":"SUM(DespesesProjecte[[#This Row],[Import imputable a la subvenció municipal]],DespesesProjecte[[#This Row],[Import de l''aportació / Cofinançament de l''organització]])","v":0},null,null,null,null,0]
[null,null,null,{"$f":"SUM(DespesesProjecte[[#This Row],[Import imputable a la subvenció municipal]],DespesesProjecte[[#This Row],[Import de l''aportació / Cofinançament de l''organització]])","v":0},null,null,null,null,0]
[null,null,null,{"$f":"SUM(DespesesProjecte[[#This Row],[Import imputable a la subvenció municipal]],DespesesProjecte[[#This Row],[Import de l''aportació / Cofinançament de l''organització]])","v":0},null,null,null,null,0]
["D6. Publicitat i propaganda de les activitats directament vinculades al projecte",{"$f":"SUM(B46:B48)","v":0},{"$f":"SUM(C46:C48)","v":0},{"$f":"SUM(DespesesProjecte[[#This Row],[Import imputable a la subvenció municipal]],DespesesProjecte[[#This Row],[Import de l''aportació / Cofinançament de l''organització]])","v":0},null,null,{"$f":"SUM(G46:G48)","v":0},{"$f":"SUM(H46:H48)","v":0},0]
[null,null,null,{"$f":"SUM(DespesesProjecte[[#This Row],[Import imputable a la subvenció municipal]],DespesesProjecte[[#This Row],[Import de l''aportació / Cofinançament de l''organització]])","v":0},null,null,null,null,0]
[null,null,null,{"$f":"SUM(DespesesProjecte[[#This Row],[Import imputable a la subvenció municipal]],DespesesProjecte[[#This Row],[Import de l''aportació / Cofinançament de l''organització]])","v":0},null,null,null,null,0]
[null,null,null,{"$f":"SUM(DespesesProjecte[[#This Row],[Import imputable a la subvenció municipal]],DespesesProjecte[[#This Row],[Import de l''aportació / Cofinançament de l''organització]])","v":0},null,null,null,null,0]
["D7. Allotjament i dietes, del personal contractat i voluntari, vinculats al projecte",{"$f":"SUM(B50:B52)","v":0},{"$f":"SUM(C50:C52)","v":0},{"$f":"SUM(DespesesProjecte[[#This Row],[Import imputable a la subvenció municipal]],DespesesProjecte[[#This Row],[Import de l''aportació / Cofinançament de l''organització]])","v":0},null,null,{"$f":"SUM(G50:G52)","v":0},{"$f":"SUM(H50:H52)","v":0},0]
[null,null,null,{"$f":"SUM(DespesesProjecte[[#This Row],[Import imputable a la subvenció municipal]],DespesesProjecte[[#This Row],[Import de l''aportació / Cofinançament de l''organització]])","v":0},null,null,null,null,0]
[null,null,null,{"$f":"SUM(DespesesProjecte[[#This Row],[Import imputable a la subvenció municipal]],DespesesProjecte[[#This Row],[Import de l''aportació / Cofinançament de l''organització]])","v":0},null,null,null,null,0]
[null,null,null,{"$f":"SUM(DespesesProjecte[[#This Row],[Import imputable a la subvenció municipal]],DespesesProjecte[[#This Row],[Import de l''aportació / Cofinançament de l''organització]])","v":0},null,null,null,null,0]
["D8. Ajuts al transport per als/les participants dels projectes en cas que sigui necessari de manera justificada",{"$f":"SUM(B54:B56)","v":0},{"$f":"SUM(C54:C56)","v":0},{"$f":"SUM(DespesesProjecte[[#This Row],[Import imputable a la subvenció municipal]],DespesesProjecte[[#This Row],[Import de l''aportació / Cofinançament de l''organització]])","v":0},null,null,{"$f":"SUM(G54:G56)","v":0},{"$f":"SUM(H54:H56)","v":0},0]
[null,null,null,{"$f":"SUM(DespesesProjecte[[#This Row],[Import imputable a la subvenció municipal]],DespesesProjecte[[#This Row],[Import de l''aportació / Cofinançament de l''organització]])","v":0},null,null,null,null,0]
[null,null,null,{"$f":"SUM(DespesesProjecte[[#This Row],[Import imputable a la subvenció municipal]],DespesesProjecte[[#This Row],[Import de l''aportació / Cofinançament de l''organització]])","v":0},null,null,null,null,0]
[null,null,null,{"$f":"SUM(DespesesProjecte[[#This Row],[Import imputable a la subvenció municipal]],DespesesProjecte[[#This Row],[Import de l''aportació / Cofinançament de l''organització]])","v":0},null,null,null,null,0]
["D9. Viatges i desplaçaments imputables a les activitats del projecte",{"$f":"SUM(B58:B60)","v":0},{"$f":"SUM(C58:C60)","v":0},{"$f":"DespesesProjecte[[#This Row],[Import imputable a la subvenció municipal]]+DespesesProjecte[[#This Row],[Import de l''aportació / Cofinançament de l''organització]]","v":0},null,null,{"$f":"SUM(G58:G60)","v":0},{"$f":"SUM(H58:H60)","v":0},0]
[null,null,null,{"$f":"SUM(DespesesProjecte[[#This Row],[Import imputable a la subvenció municipal]],DespesesProjecte[[#This Row],[Import de l''aportació / Cofinançament de l''organització]])","v":0},null,null,null,null,0]
[null,null,null,{"$f":"SUM(DespesesProjecte[[#This Row],[Import imputable a la subvenció municipal]],DespesesProjecte[[#This Row],[Import de l''aportació / Cofinançament de l''organització]])","v":0},null,null,null,null,0]
[null,null,null,{"$f":"SUM(DespesesProjecte[[#This Row],[Import imputable a la subvenció municipal]],DespesesProjecte[[#This Row],[Import de l''aportació / Cofinançament de l''organització]])","v":0},null,null,null,null,0]
["D10.Tributs, quan siguin abonats directament per la persona jurídica o física beneficiària",{"$f":"SUM(B62:B64)","v":0},{"$f":"SUM(C62:C64)","v":0},{"$f":"DespesesProjecte[[#This Row],[Import imputable a la subvenció municipal]]+DespesesProjecte[[#This Row],[Import de l''aportació / Cofinançament de l''organització]]","v":0},null,null,{"$f":"SUM(G62:G64)","v":0},{"$f":"SUM(H62:H64)","v":0},0]
[null,null,null,{"$f":"SUM(DespesesProjecte[[#This Row],[Import imputable a la subvenció municipal]],DespesesProjecte[[#This Row],[Import de l''aportació / Cofinançament de l''organització]])","v":0},null,null,null,null,0]
[null,null,null,{"$f":"SUM(DespesesProjecte[[#This Row],[Import imputable a la subvenció municipal]],DespesesProjecte[[#This Row],[Import de l''aportació / Cofinançament de l''organització]])","v":0},null,null,null,null,0]
[null,null,null,{"$f":"SUM(DespesesProjecte[[#This Row],[Import imputable a la subvenció municipal]],DespesesProjecte[[#This Row],[Import de l''aportació / Cofinançament de l''organització]])","v":0},null,null,null,null,0]
["D11. Despeses de l'informe d'auditoria (màxim 1.500€ subvenció)",{"$f":"SUM(B66:B68)","v":0},{"$f":"SUM(C66:C72)","v":0},{"$f":"DespesesProjecte[[#This Row],[Import imputable a la subvenció municipal]]+DespesesProjecte[[#This Row],[Import de l''aportació / Cofinançament de l''organització]]","v":0},null,null,{"$f":"SUM(G66:G68)","v":0},{"$f":"SUM(H66:H72)","v":0},0,{"$f":"+IF(G65>1500,\"ALERTA: Màxim 1.500€ de l'import imputable a la subvenció municipal\", \" \")","v":" "}]
[null,null,null,{"$f":"SUM(DespesesProjecte[[#This Row],[Import imputable a la subvenció municipal]],DespesesProjecte[[#This Row],[Import de l''aportació / Cofinançament de l''organització]])","v":0},null,null,null,null,0]
[null,null,null,{"$f":"SUM(DespesesProjecte[[#This Row],[Import imputable a la subvenció municipal]],DespesesProjecte[[#This Row],[Import de l''aportació / Cofinançament de l''organització]])","v":0},null,null,null,null,0]
[null,null,null,{"$f":"SUM(DespesesProjecte[[#This Row],[Import imputable a la subvenció municipal]],DespesesProjecte[[#This Row],[Import de l''aportació / Cofinançament de l''organització]])","v":0},null,null,null,null,0]
["D12. Altres despeses que de manera justificada i per la tipologia del projecte puguin imputar-se directament al projecte",{"$f":"SUM(B70:B72)","v":0},{"$f":"SUM(C70:C72)","v":0},{"$f":"DespesesProjecte[[#This Row],[Import imputable a la subvenció municipal]]+DespesesProjecte[[#This Row],[Import de l''aportació / Cofinançament de l''organització]]","v":0},null,null,{"$f":"SUM(G70:G72)","v":0},{"$f":"SUM(H70:H72)","v":0},0]
[null,null,null,{"$f":"SUM(DespesesProjecte[[#This Row],[Import imputable a la subvenció municipal]],DespesesProjecte[[#This Row],[Import de l''aportació / Cofinançament de l''organització]])","v":0},null,null,null,null,0]
[null,null,null,{"$f":"SUM(DespesesProjecte[[#This Row],[Import imputable a la subvenció municipal]],DespesesProjecte[[#This Row],[Import de l''aportació / Cofinançament de l''organització]])","v":0},null,null,null,null,0]
[null,null,null,{"$f":"SUM(DespesesProjecte[[#This Row],[Import imputable a la subvenció municipal]],DespesesProjecte[[#This Row],[Import de l''aportació / Cofinançament de l''organització]])","v":0},null,null,null,null,0]
["TOTAL D'ALTRES DESPESES DIRECTES",{"$f":"B29+B33+B37+B41+B45+B49+B53+B57+B61+B65+B69","v":0},{"$f":"C29+C33+C37+C41+C45+C49+C53+C57+C61+C65+C69","v":0},{"$f":"D29+D33+D37+D41+D45+D49+D53+D57+D61+D65+D69","v":0},null,null,{"$f":"G29+G33+G37+G41+G45+G49+G53+G57+G61+G65+G69","v":0},{"$f":"H29+H33+H37+H41+H45+H49+H53+H57+H61+H65+H69","v":0},{"$f":"I29+I33+I37+I41+I45+I49+I53+I57+I61+I65+I69","v":0}]
["TOTAL DESPESES DIRECTES (aquelles que s’identifiquen directament amb el projecte subvencionable)",{"$f":"B28+B73","v":0},{"$f":"C28+C73","v":0},{"$f":"D28+D73","v":0},null,null,{"$f":"G28+G73","v":0},{"$f":"H28+H73","v":0},{"$f":"I28+I73","v":0}]
["I1. Personal de suport al projecte (nòmines i seguretat social)",{"$f":"SUM(B76:B78)","v":0},{"$f":"SUM(C76:C78)","v":0},{"$f":"SUM(DespesesProjecte[[#This Row],[Import imputable a la subvenció municipal]],DespesesProjecte[[#This Row],[Import de l''aportació / Cofinançament de l''organització]])","v":0},null,null,{"$f":"SUM(G76:G78)","v":0},{"$f":"SUM(H76:H78)","v":0},{"$f":"+G75+H75","v":0}]
[null,null,null,{"$f":"SUM(DespesesProjecte[[#This Row],[Import imputable a la subvenció municipal]],DespesesProjecte[[#This Row],[Import de l''aportació / Cofinançament de l''organització]])","v":0},null,null,null,null,{"$f":"+G76+H76","v":0}]
[null,null,null,{"$f":"SUM(DespesesProjecte[[#This Row],[Import imputable a la subvenció municipal]],DespesesProjecte[[#This Row],[Import de l''aportació / Cofinançament de l''organització]])","v":0},null,null,null,null,0]
[null,null,null,{"$f":"SUM(DespesesProjecte[[#This Row],[Import imputable a la subvenció municipal]],DespesesProjecte[[#This Row],[Import de l''aportació / Cofinançament de l''organització]])","v":0},null,null,null,null,0]
["I2.  Assegurances",{"$f":"SUM(B80:B82)","v":0},{"$f":"SUM(C80:C82)","v":0},{"$f":"SUM(DespesesProjecte[[#This Row],[Import imputable a la subvenció municipal]],DespesesProjecte[[#This Row],[Import de l''aportació / Cofinançament de l''organització]])","v":0},null,null,{"$f":"SUM(G80:G82)","v":0},{"$f":"SUM(H80:H82)","v":0},0]
[null,null,null,{"$f":"SUM(DespesesProjecte[[#This Row],[Import imputable a la subvenció municipal]],DespesesProjecte[[#This Row],[Import de l''aportació / Cofinançament de l''organització]])","v":0},null,null,null,null,0]
[null,null,null,{"$f":"SUM(DespesesProjecte[[#This Row],[Import imputable a la subvenció municipal]],DespesesProjecte[[#This Row],[Import de l''aportació / Cofinançament de l''organització]])","v":0},null,null,null,null,0]
[null,null,null,{"$f":"SUM(DespesesProjecte[[#This Row],[Import imputable a la subvenció municipal]],DespesesProjecte[[#This Row],[Import de l''aportació / Cofinançament de l''organització]])","v":0},null,null,null,null,0]
["I3.  Amortització",{"$f":"SUM(B84:B86)","v":0},{"$f":"SUM(C84:C86)","v":0},{"$f":"SUM(DespesesProjecte[[#This Row],[Import imputable a la subvenció municipal]],DespesesProjecte[[#This Row],[Import de l''aportació / Cofinançament de l''organització]])","v":0},null,null,{"$f":"SUM(G84:G86)","v":0},{"$f":"SUM(H84:H86)","v":0},0]
[null,null,null,{"$f":"SUM(DespesesProjecte[[#This Row],[Import imputable a la subvenció municipal]],DespesesProjecte[[#This Row],[Import de l''aportació / Cofinançament de l''organització]])","v":0},null,null,null,null,0]
[null,null,null,{"$f":"SUM(DespesesProjecte[[#This Row],[Import imputable a la subvenció municipal]],DespesesProjecte[[#This Row],[Import de l''aportació / Cofinançament de l''organització]])","v":0},null,null,null,null,0]
[null,null,null,{"$f":"SUM(DespesesProjecte[[#This Row],[Import imputable a la subvenció municipal]],DespesesProjecte[[#This Row],[Import de l''aportació / Cofinançament de l''organització]])","v":0},null,null,null,null,0]
["I4.  Lloguer de béns immobles",{"$f":"SUM(B88:B90)","v":0},{"$f":"SUM(C88:C90)","v":0},{"$f":"SUM(DespesesProjecte[[#This Row],[Import imputable a la subvenció municipal]],DespesesProjecte[[#This Row],[Import de l''aportació / Cofinançament de l''organització]])","v":0},null,null,{"$f":"SUM(G88:G90)","v":0},{"$f":"SUM(H88:H90)","v":0},0]
[null,null,null,{"$f":"SUM(DespesesProjecte[[#This Row],[Import imputable a la subvenció municipal]],DespesesProjecte[[#This Row],[Import de l''aportació / Cofinançament de l''organització]])","v":0},null,null,null,null,0]
[null,null,null,{"$f":"SUM(DespesesProjecte[[#This Row],[Import imputable a la subvenció municipal]],DespesesProjecte[[#This Row],[Import de l''aportació / Cofinançament de l''organització]])","v":0},null,null,null,null,0]
[null,null,null,{"$f":"SUM(DespesesProjecte[[#This Row],[Import imputable a la subvenció municipal]],DespesesProjecte[[#This Row],[Import de l''aportació / Cofinançament de l''organització]])","v":0},null,null,null,null,0]
["I5.  Adquisició de materials i béns consumibles parcialment imputables al projecte",{"$f":"SUM(B92:B94)","v":0},{"$f":"SUM(C92:C94)","v":0},{"$f":"SUM(DespesesProjecte[[#This Row],[Import imputable a la subvenció municipal]],DespesesProjecte[[#This Row],[Import de l''aportació / Cofinançament de l''organització]])","v":0},null,null,{"$f":"SUM(G92:G94)","v":0},{"$f":"SUM(H92:H94)","v":0},0]
[null,null,null,{"$f":"SUM(DespesesProjecte[[#This Row],[Import imputable a la subvenció municipal]],DespesesProjecte[[#This Row],[Import de l''aportació / Cofinançament de l''organització]])","v":0},null,null,null,null,0]
[null,null,null,{"$f":"SUM(DespesesProjecte[[#This Row],[Import imputable a la subvenció municipal]],DespesesProjecte[[#This Row],[Import de l''aportació / Cofinançament de l''organització]])","v":0},null,null,null,null,0]
[null,null,null,{"$f":"SUM(DespesesProjecte[[#This Row],[Import imputable a la subvenció municipal]],DespesesProjecte[[#This Row],[Import de l''aportació / Cofinançament de l''organització]])","v":0},null,null,null,null,0]
["I6.  Manteniment d’edificis i/o instal·lacions",{"$f":"SUM(B96:B98)","v":0},{"$f":"SUM(C96:C98)","v":0},{"$f":"SUM(DespesesProjecte[[#This Row],[Import imputable a la subvenció municipal]],DespesesProjecte[[#This Row],[Import de l''aportació / Cofinançament de l''organització]])","v":0},null,null,{"$f":"SUM(G96:G98)","v":0},{"$f":"SUM(H96:H98)","v":0},0]
[null,null,null,{"$f":"SUM(DespesesProjecte[[#This Row],[Import imputable a la subvenció municipal]],DespesesProjecte[[#This Row],[Import de l''aportació / Cofinançament de l''organització]])","v":0},null,null,null,null,0]
[null,null,null,{"$f":"SUM(DespesesProjecte[[#This Row],[Import imputable a la subvenció municipal]],DespesesProjecte[[#This Row],[Import de l''aportació / Cofinançament de l''organització]])","v":0},null,null,null,null,0]
[null,null,null,{"$f":"SUM(DespesesProjecte[[#This Row],[Import imputable a la subvenció municipal]],DespesesProjecte[[#This Row],[Import de l''aportació / Cofinançament de l''organització]])","v":0},null,null,null,null,0]
["I7.  Comunicacions (telèfon, correus, connexió a internet)",{"$f":"SUM(B100:B102)","v":0},{"$f":"SUM(C100:C102)","v":0},{"$f":"SUM(DespesesProjecte[[#This Row],[Import imputable a la subvenció municipal]],DespesesProjecte[[#This Row],[Import de l''aportació / Cofinançament de l''organització]])","v":0},null,null,{"$f":"SUM(G100:G102)","v":0},{"$f":"SUM(H100:H102)","v":0},0]
[null,null,null,{"$f":"SUM(DespesesProjecte[[#This Row],[Import imputable a la subvenció municipal]],DespesesProjecte[[#This Row],[Import de l''aportació / Cofinançament de l''organització]])","v":0},null,null,null,null,0]
[null,null,null,{"$f":"SUM(DespesesProjecte[[#This Row],[Import imputable a la subvenció municipal]],DespesesProjecte[[#This Row],[Import de l''aportació / Cofinançament de l''organització]])","v":0},null,null,null,null,0]
[null,null,null,{"$f":"SUM(DespesesProjecte[[#This Row],[Import imputable a la subvenció municipal]],DespesesProjecte[[#This Row],[Import de l''aportació / Cofinançament de l''organització]])","v":0},null,null,null,null,0]
["I8.  Despeses financeres",{"$f":"SUM(B104:B106)","v":0},{"$f":"SUM(C104:C106)","v":0},{"$f":"SUM(DespesesProjecte[[#This Row],[Import imputable a la subvenció municipal]],DespesesProjecte[[#This Row],[Import de l''aportació / Cofinançament de l''organització]])","v":0},null,null,{"$f":"SUM(G104:G106)","v":0},{"$f":"SUM(H104:H106)","v":0},0]
[null,null,null,{"$f":"SUM(DespesesProjecte[[#This Row],[Import imputable a la subvenció municipal]],DespesesProjecte[[#This Row],[Import de l''aportació / Cofinançament de l''organització]])","v":0},null,null,null,null,0]
[null,null,null,{"$f":"SUM(DespesesProjecte[[#This Row],[Import imputable a la subvenció municipal]],DespesesProjecte[[#This Row],[Import de l''aportació / Cofinançament de l''organització]])","v":0},null,null,null,null,0]
[null,null,null,{"$f":"SUM(DespesesProjecte[[#This Row],[Import imputable a la subvenció municipal]],DespesesProjecte[[#This Row],[Import de l''aportació / Cofinançament de l''organització]])","v":0},null,null,null,null,0]
["I9.  Subministraments ",{"$f":"SUM(B108:B110)","v":0},{"$f":"SUM(C108:C110)","v":0},{"$f":"SUM(DespesesProjecte[[#This Row],[Import imputable a la subvenció municipal]],DespesesProjecte[[#This Row],[Import de l''aportació / Cofinançament de l''organització]])","v":0},null,null,{"$f":"SUM(G108:G110)","v":0},{"$f":"SUM(H108:H110)","v":0},0]
[null,null,null,{"$f":"SUM(DespesesProjecte[[#This Row],[Import imputable a la subvenció municipal]],DespesesProjecte[[#This Row],[Import de l''aportació / Cofinançament de l''organització]])","v":0},null,null,null,null,0]
[null,null,null,{"$f":"SUM(DespesesProjecte[[#This Row],[Import imputable a la subvenció municipal]],DespesesProjecte[[#This Row],[Import de l''aportació / Cofinançament de l''organització]])","v":0},null,null,null,null,0]
[null,null,null,{"$f":"SUM(DespesesProjecte[[#This Row],[Import imputable a la subvenció municipal]],DespesesProjecte[[#This Row],[Import de l''aportació / Cofinançament de l''organització]])","v":0},null,null,null,null,0]
["I10.  Treball realitzat per altres empreses, parcialment imputables al projecte (neteja, seguretat...)",{"$f":"SUM(B112:B114)","v":0},{"$f":"SUM(C112:C114)","v":0},{"$f":"SUM(DespesesProjecte[[#This Row],[Import imputable a la subvenció municipal]],DespesesProjecte[[#This Row],[Import de l''aportació / Cofinançament de l''organització]])","v":0},null,null,{"$f":"SUM(G112:G114)","v":0},{"$f":"SUM(H112:H114)","v":0},0]
[null,null,null,{"$f":"SUM(DespesesProjecte[[#This Row],[Import imputable a la subvenció municipal]],DespesesProjecte[[#This Row],[Import de l''aportació / Cofinançament de l''organització]])","v":0},null,null,null,null,0]
[null,null,null,{"$f":"SUM(DespesesProjecte[[#This Row],[Import imputable a la subvenció municipal]],DespesesProjecte[[#This Row],[Import de l''aportació / Cofinançament de l''organització]])","v":0},null,null,null,null,0]
[null,null,null,{"$f":"SUM(DespesesProjecte[[#This Row],[Import imputable a la subvenció municipal]],DespesesProjecte[[#This Row],[Import de l''aportació / Cofinançament de l''organització]])","v":0},null,null,null,null,0]
["TOTAL DESPESES INDIRECTES (es podran assignar al projecte subvencionable fent sevir un percentatge d’assignació) - Màxim 10% de l’import imputable a la subvenció municipal",{"$f":"SUM(B75,B79,B83,B87,B91,B95,B99,B103,B107,B111)","v":0},{"$f":"SUM(C75,C79,C83,C87,C91,C95,C99,C103,C107,C111)","v":0},{"$f":"SUM(D75,D79,D83,D87,D91,D95,D99,D103,D107,D111)","v":0},null,null,{"$f":"SUM(G75,G79,G83,G87,G91,G95,G99,G103,G107,G111)","v":0},{"$f":"SUM(H75,H79,H83,H87,H91,H95,H99,H103,H107,H111)","v":0},{"$f":"SUM(I75,I79,I83,I87,I91,I95,I99,I103,I107,I111)","v":0},{"$f":"+IF(G115>H13*0.1,\"ALERTA: Màxim 10% de l'import imputable a la subvenció municipal\", \" \")","v":" "}]
["TOTAL DE DESPESES PREVISTES",{"$f":"SUM(B115,B74)","v":0},{"$f":"SUM(C115,C74)","v":0},{"$f":"SUM(D115,D74)","v":0},null,null,{"$f":"SUM(G115,G74)","v":0},{"$f":"SUM(H115,H74)","v":0},{"$f":"SUM(I115,I74)","v":0}]
[]
[]
[]
[]
[]
[]
["Modalitat Bc. Projectes i accions d’intercooperació significatives pel desenvolupament dels Projectes de Ciutat i reptes transversals de l’#ESSBCN2030"]
["1.  La quantia de la subvenció atorgada no superarà el 80% de la despesa total del projecte a subvencionar. "]
["2. L'import màxim de subvenció per a aquesta modalitat de l'àmbit temàtic de Reactivació: Intercooperació (Bc) és 25.000€.\n"]
["3.  En el cas que la sol·licitud presentada sobrepassi l’import màxim, es considerarà com a import sol·licitat el màxim de l'establert a la convocatòria."]
["4. En aquesta modalitat s’acceptarà la imputació de despeses de personal propi i directament vinculat al projecte de les organitzacions participants de l’acord de d’intercooperació presentat pel desenvolupament del projecte subvencionable."]
["5.  Es limita amb un màxim del 25% l’import de la subvenció per a despeses de personal propi assignat directament al projecte subvencionat  (retribucions i seguretat social –règim general o autònoms-)."]
["6. En el cas de lloguers d’immobles les despeses de lloguer s’imputaran a les despeses indirectes amb el límit establert per aquestes."]
["7. Per a les subvencions atorgades per import igual o superior a 20.000 € és obligatori un informe d'auditoria per a la justificació. L'import d'aquest informe es considera despesa subvencionable, amb un límit màxim de 1.500€."]
["8. Són imputables en aquesta modalitat les despeses indirectes, detallades en l’apartat 13.3. de les bases reguladores; amb un màxim del 10% de l'import de la subvenció.\nEl caràcter subvencionable de la despesa d'amortització estarà subjecte a les condicions següents:\n> Que les subvencions no hagin contribuït a la compra dels béns.\n> Que l'amortització es calculi de conformitat amb les normes de comptabilitat generalment acceptades.\n> Que el cost es refereixi al període subvencionable.\n\n"]
["9. No s’admetrà cap proposta en aquesta modalitat que no presenti l’acord d’intercooperació per persones jurídiques pel projecte presentat per rebre subvenció."]
["10.  Quan s'hagi de fer despeses de més de 12.000 €, sense IVA, en el cas de prestacions de serveis o lliurament de béns i per aquelles despeses de més de 30.000 €,  sense IVA, en el cas d'execució d'obres, s'hauran d'incorporar tres pressupostos sol·licitats i argumentar el motiu de l'adjudicació en el cas de no ser la proposta més avantatjosa econòmicament."]
["11. Els projectes d'aquesta modalitat hauran de lliurar a la seva finalització un producte comunicatiu, d'acord amb el contingut establert a la convocatòria de la subvenció."]
["12. No seran elegibles factures d'empreses emeses entre les organitzacions participants de l'acord de col·laboració."]
["13. En cap cas es consideraran despeses subvencionables:\n> Els impostos indirectes quan siguin susceptibles de recuperació o compensació.\n> Les despeses d'inversió, incloses les adquisicions de béns mobles.\n> Les despeses realitzades amb data anterior a l'inici del projecte i data posterior a la finalització del projecte.\n> Altres despeses que s'indiquin a la convocatòria."]
["14. La retribució de les persones contractades en el marc del projecte subvencionat no pot ser inferior al Salari Mínim Interprofessional (SMI), ni a l'estipulada al corresponent conveni o marc normatiu de referència (punt 7 de les bases 2023: requisits dels projectes). "]
["15. Els materials produïts de difusió, estudis, informes o materials didàctics utilitzats, etc. en el cas de tractar-se de despesa elegible de la subvenció, hauran de tenir llicència Creative Commons -Compartir Igual- (share a like) i no podrà tenir la condició –Sense Obres Derivades- (no derivate Works)."]
["16. Els projectes subvencionats han de fomentar activitats d'interès públic o social, les quals han de ser gratuïtes per a les persones participants o en cap cas el preu ha de suposar un obstacle per a la seva participació, buscant altres formes d'accés per a persones amb dificultats econòmiques. En el cas que hi hagi algun tipus de lucre, haurà de revertir en les pròpies activitats subvencionades."]
["17. L'Ajuntament de Barcelona i les seves entitats municipals en cap cas subvencionaran el mateix projecte, executat durant el mateix període, per cap altre procediment de concessió que no sigui el regulat per les bases reguladores."]
["18. El/la beneficiari/ària no podrà alterar en cap cas el destí de les subvencions concedides."]
["19. L'organització designada com a representant de l'agrupació serà plenament responsable del projecte davant l'Ajuntament respecte al compliment de les obligacions establertes en les bases reguladores, sense perjudici de la responsabilitat de les altres organitzacions sòcies de l'agrupació, tot sent-li d'aplicació els requisits previstos al punt 6.1 de les bases reguladores."]
["20. En cap cas podran formar part de l'agrupació les organitzacions que hagin rebut altres subvencions per a l'execució del mateix projecte d'altres administracions públiques."]

{"sheet":"Resum Pressupost","index":2,"n_rows":34,"n_cols":11,"rows_kept":34,"cut":false,"hidden":false,"merged":[[23,7,23,9],[5,9,6,9],[1,2,1,7],[3,0,3,8],[20,2,21,2],[20,3,21,3],[20,4,21,4],[5,0,6,1],[5,2,6,2],[5,3,6,3],[5,4,6,4],[5,6,6,7],[5,8,6,8],[18,6,18,7],[20,0,21,1]]}
[]
[null,null,"Resum pressupost Modalitat Bc"]
[]
["Subvencions de l'Ajuntament de Barcelona per a la reactivació i l'enfortiment de l'Economia Social i Solidària i el desenvolupament de projectes d'intercooperació que desenvolupen l'Estratègia #ESSBCN2030",null,null,null,null,null,null,null,null,"MODALITAT Bc"]
[]
["Despeses directes \n(aquelles que s'identifiquen directament amb el projecte)",null,"Previsió inicial cost total","Previsió reformulada cost total","Import imputat a la subvenció atorgada",null,"Ingressos previstos",null,"Previsió inicial ingrés total","Previsió reformulada ingrés total"]
[]
["Bc","D1. Retribucions i seguretat social (règim general o règim d’autònoms) del personal propi vinculat/da al projecte (màxim 25% subvenció)",{"$f":"+'Reformulació Pressupost Bc'!D23","v":0},{"$f":"+'Reformulació Pressupost Bc'!I23","v":0},{"$f":"+'Reformulació Pressupost Bc'!G23","v":0},{"$f":"+IF(D8<0,\"No s'admeten valors negatius\",\"\")","v":""},"A.","Subvenció municipal (import sol·licitat a la instància/atorgat)"]
[null,"D2.  Treballs realitzats per professionals i empreses externes directament vinculades al projecte subvencionat",{"$f":"+'Reformulació Pressupost Bc'!D29","v":0},{"$f":"+'Reformulació Pressupost Bc'!I29","v":0},{"$f":"+'Reformulació Pressupost Bc'!G29","v":0},{"$f":"+IF(D9<0,\"No s'admeten valors negatius\",\"\")","v":""},"B.","Subvencions d'altres administracions",null,null,{"$f":"+IF(J9<0,\"No s'admeten valors negatius\",\"\")","v":""}]
[null,"D3.  Lloguer de béns mobles/ immobles directament vinculats al projecte subvencionable (màx. 25% subvenció en cas d'immobles per a un nou espai)",{"$f":"+'Reformulació Pressupost Bc'!D33","v":0},{"$f":"+'Reformulació Pressupost Bc'!I33","v":0},{"$f":"+'Reformulació Pressupost Bc'!G33","v":0},{"$f":"+IF(D10<0,\"No s'admeten valors negatius\",\"\")","v":""},"C.","Subvencions d'ens privats",null,null,""]
[null,"D4.  Adquisició de materials i béns consumibles íntegrament imputables al projecte ",{"$f":"+'Reformulació Pressupost Bc'!D37","v":0},{"$f":"+'Reformulació Pressupost Bc'!I37","v":0},{"$f":"+'Reformulació Pressupost Bc'!G37","v":0},{"$f":"+IF(D11<0,\"No s'admeten valors negatius\",\"\")","v":""},"D.","Recursos propis de l'organització aplicats al projecte"]
[null,"D5.  Transport – missatgeria imputables al projecte ",{"$f":"+'Reformulació Pressupost Bc'!D41","v":0},{"$f":"+'Reformulació Pressupost Bc'!I41","v":0},{"$f":"+'Reformulació Pressupost Bc'!G41","v":0},null,"E.","Taquillatge"]
[null,"D6. Publicitat i propaganda de les activitats directament vinculades al projecte ",{"$f":"+'Reformulació Pressupost Bc'!D45","v":0},{"$f":"+'Reformulació Pressupost Bc'!I45","v":0},{"$f":"+'Reformulació Pressupost Bc'!G45","v":0},null,"F.","Quotes d'inscripció"]
[null,"D7.  Allotjament i dietes, del personal contractat i voluntari, vinculats al projecte",{"$f":"+'Reformulació Pressupost Bc'!D49","v":0},{"$f":"+'Reformulació Pressupost Bc'!I49","v":0},{"$f":"+'Reformulació Pressupost Bc'!G49","v":0},null,"G.","Venda de Productes"]
[null,"D8.  Ajuts al transport per als/les participants dels projectes en cas que sigui necessari de manera justificada",{"$f":"+'Reformulació Pressupost Bc'!D53","v":0},{"$f":"+'Reformulació Pressupost Bc'!I53","v":0},{"$f":"+'Reformulació Pressupost Bc'!G53","v":0},null,"H","Publicitat i/o Esponsorització"]
[null,"D9. Viatges i desplaçaments imputables a les activitats del projecte",{"$f":"+'Reformulació Pressupost Bc'!D57","v":0},{"$f":"+'Reformulació Pressupost Bc'!I57","v":0},{"$f":"+'Reformulació Pressupost Bc'!G57","v":0},null,"I.","Altres ingressos"]
[null,"D10. Tributs, quan siguin abonats directament per la persona jurídica o física beneficiària",{"$f":"+'Reformulació Pressupost Bc'!D61","v":0},{"$f":"+'Reformulació Pressupost Bc'!I61","v":0},{"$f":"+'Reformulació Pressupost Bc'!G61","v":0},null,null,"Total Ingressos",{"$f":"SUM(I8:I16)","v":0},{"$f":"SUM(J8:J16)","v":0}]
[null,"D11.  Despeses de l’informe d’auditoria (màx. 1.500€ subvenció)",{"$f":"+'Reformulació Pressupost Bc'!D65","v":0},{"$f":"+'Reformulació Pressupost Bc'!I65","v":0},{"$f":"+'Reformulació Pressupost Bc'!G65","v":0}]
[null,"D12.  Altres despeses que de manera justificada puguin imputar-se directament al projecte subvencionable",{"$f":"+'Reformulació Pressupost Bc'!D69","v":0},{"$f":"+'Reformulació Pressupost Bc'!I69","v":0},{"$f":"+'Reformulació Pressupost Bc'!G69","v":0},null,"Ingressos menys despeses ",null,{"$f":"+I17-C34","v":0},{"$f":"+J17-D34","v":0}]
[null,"Total Despeses Directes   ",{"$f":"SUM(C8:C19)","v":0},{"$f":"SUM(D8:D19)","v":0},{"$f":"SUM(E8:E19)","v":0}]
["Despeses indirectes (es podran assignar al projecte fent sevir un percentatge d’assignació) ",null,"Previsió inicial cost total","Previsió reformulada cost total","Import imputat a la subvenció atorgada",null,null,null,"% subvencionat inicialment",{"$f":"I8/C34","v":{"$error":"#DIV/0!"}}]
[]
[null,"I.1 Personal de suport al projecte subvencionat (Nòmines i seguretat social)",{"$f":"+'Reformulació Pressupost Bc'!D75","v":0},{"$f":"+'Reformulació Pressupost Bc'!I75","v":0},{"$f":"+'Reformulació Pressupost Bc'!G75","v":0},null,null,null,"% subvencionat després de reformular",{"$f":"+J8/D34","v":{"$error":"#DIV/0!"}},"*"]
[null,"I.2  Assegurances",{"$f":"+'Reformulació Pressupost Bc'!D79","v":0},{"$f":"+'Reformulació Pressupost Bc'!I79","v":0},{"$f":"+'Reformulació Pressupost Bc'!G79","v":0},null,null,"*Aquest percentatge ha de ser igual o menor al percentatge subvencionat inicialment."]
[null,"I.3  Amortització",{"$f":"+'Reformulació Pressupost Bc'!D83","v":0},{"$f":"+'Reformulació Pressupost Bc'!I83","v":0},{"$f":"+'Reformulació Pressupost Bc'!G83","v":0},{"$f":"+IF(D25<0,\"No s'admeten valors negatius\",\"\")","v":""}]
[null,"I.4  Lloguer de béns immobles",{"$f":"+'Reformulació Pressupost Bc'!D87","v":0},{"$f":"+'Reformulació Pressupost Bc'!I87","v":0},{"$f":"+'Reformulació Pressupost Bc'!G87","v":0}]
[null,"I.5  Adquisició de materials i béns consumibles parcialment imputables al projecte",{"$f":"+'Reformulació Pressupost Bc'!D91","v":0},{"$f":"+'Reformulació Pressupost Bc'!I91","v":0},{"$f":"+'Reformulació Pressupost Bc'!G91","v":0}]
[null,"I.6  Manteniment d’edificis i/o instal·lacions",{"$f":"+'Reformulació Pressupost Bc'!D95","v":0},{"$f":"+'Reformulació Pressupost Bc'!I95","v":0},{"$f":"+'Reformulació Pressupost Bc'!G95","v":0}]
[null,"I.7  Comunicacions (telèfon, correus, connexió a internet)",{"$f":"+'Reformulació Pressupost Bc'!D99","v":0},{"$f":"+'Reformulació Pressupost Bc'!I99","v":0},{"$f":"+'Reformulació Pressupost Bc'!G99","v":0}]
[null,"I.8  Despeses financeres",{"$f":"+'Reformulació Pressupost Bc'!D103","v":0},{"$f":"+'Reformulació Pressupost Bc'!I103","v":0},{"$f":"+'Reformulació Pressupost Bc'!G103","v":0}]
[null,"I.9  Subministraments ",{"$f":"+'Reformulació Pressupost Bc'!D107","v":0},{"$f":"+'Reformulació Pressupost Bc'!I107","v":0},{"$f":"+'Reformulació Pressupost Bc'!G107","v":0}]
[null,"I.10  Treball realitzat per altres empreses, parcialment imputables al projecte subvencionable (neteja, seguretat...)",{"$f":"+'Reformulació Pressupost Bc'!D111","v":0},{"$f":"+'Reformulació Pressupost Bc'!I111","v":0},{"$f":"+'Reformulació Pressupost Bc'!G111","v":0}]
[null,"Total Despeses Indirectes   (Màx. 10% subv)",{"$f":"SUM(C23:C32)","v":0},{"$f":"SUM(D23:D32)","v":0},{"$f":"SUM(E23:E32)","v":0}]
[null,"Total Despeses ",{"$f":"+C20+C33","v":0},{"$f":"+D20+D33","v":0},{"$f":"+E20+E33","v":0}]